[Event "Titled Tuesday Blitz January 31 Late 2023"]
[White "Zampronha, Wladimir Camilo"]
[Black "Hajiyev, Kanan"]
[WhiteFideId "2103087"]
[BlackFideId "13404148"]
[WhiteElo "2176"]
[BlackElo "2197"]
[Result "0-1"]
[Round "02"]
[TimeControl "180+2"]
[Date "2023.01.31"]
[WhiteClock "0:00:44"]
[BlackClock "0:00:19"]

1. e4 {[%clk 0:03:00]}  c6 {[%clk 0:02:58]} 2. d4 {[%clk 0:03:00]}  d5 {[%clk 0:02:54]} 3. e5 {[%clk 0:03:00]}  a6 {[%clk 0:02:54]} 4. c4 {[%clk 0:02:56]}  Bf5 {[%clk 0:02:53]} 5. Nc3 {[%clk 0:02:54]}  e6 {[%clk 0:02:53]} 6. Nf3 {[%clk 0:02:54]}  Bb4 {[%clk 0:02:52]} 7. a3 {[%clk 0:02:49]}  Bxc3+ {[%clk 0:02:50]} 8. bxc3 {[%clk 0:02:50]}  dxc4 {[%clk 0:02:47]} 9. Bxc4 {[%clk 0:02:50]}  Ne7 {[%clk 0:02:48]} 10. O-O {[%clk 0:02:49]}  O-O {[%clk 0:02:47]} 11. a4 {[%clk 0:02:49]}  Nd5 {[%clk 0:02:23]} 12. Ba3 {[%clk 0:02:37]}  Re8 {[%clk 0:02:21]} 13. Qd2 {[%clk 0:02:34]}  Nd7 {[%clk 0:02:17]} 14. Bd3 {[%clk 0:02:30]}  Bxd3 {[%clk 0:02:13]} 15. Qxd3 {[%clk 0:02:30]}  h6 {[%clk 0:02:13]} 16. Rfe1 {[%clk 0:02:27]}  b5 {[%clk 0:02:10]} 17. Nd2 {[%clk 0:02:24]}  Qg5 {[%clk 0:02:07]} 18. Ne4 {[%clk 0:02:21]}  Qg6 {[%clk 0:02:05]} 19. Qf3 {[%clk 0:02:09]}  N7b6 {[%clk 0:01:58]} 20. axb5 {[%clk 0:02:03]}  axb5 {[%clk 0:01:57]} 21. Bc5 {[%clk 0:02:01]}  Nc4 {[%clk 0:01:55]} 22. Nd6 {[%clk 0:01:57]}  Reb8 {[%clk 0:01:52]} 23. Nxc4 {[%clk 0:01:48]}  bxc4 {[%clk 0:01:49]} 24. h3 {[%clk 0:01:37]}  Qd3 {[%clk 0:01:15]} 25. Rxa8 {[%clk 0:01:31]}  Rxa8 {[%clk 0:01:14]} 26. Qxd3 {[%clk 0:01:29]}  cxd3 {[%clk 0:01:15]} 27. Rd1 {[%clk 0:01:28]}  Nxc3 {[%clk 0:01:01]} 28. Rxd3 {[%clk 0:01:28]}  Ra1+ {[%clk 0:01:00]} 29. Kh2 {[%clk 0:01:28]}  Nd5 {[%clk 0:00:56]} 30. Rd2 {[%clk 0:01:21]}  Ra4 {[%clk 0:00:55]} 31. g3 {[%clk 0:01:19]}  h5 {[%clk 0:00:55]} 32. Kg2 {[%clk 0:01:19]}  g5 {[%clk 0:00:55]} 33. Rb2 {[%clk 0:01:16]}  Kg7 {[%clk 0:00:52]} 34. Rb7 {[%clk 0:01:14]}  g4 {[%clk 0:00:51]} 35. hxg4 {[%clk 0:01:13]}  hxg4 {[%clk 0:00:52]} 36. Rb1 {[%clk 0:01:05]}  Ra2 {[%clk 0:00:52]} 37. Re1 {[%clk 0:01:01]}  Rd2 {[%clk 0:00:49]} 38. Re4 {[%clk 0:01:00]}  Kh6 {[%clk 0:00:44]} 39. Kg1 {[%clk 0:00:51]}  Kh5 {[%clk 0:00:44]} 40. Kg2 {[%clk 0:00:49]}  Kg5 {[%clk 0:00:44]} 41. Kg1 {[%clk 0:00:49]}  Kf5 {[%clk 0:00:45]} 42. Re1 {[%clk 0:00:48]}  Nc3 {[%clk 0:00:41]} 43. Kg2 {[%clk 0:00:47]}  Ne4 {[%clk 0:00:39]} 44. Rf1 {[%clk 0:00:45]}  Nxc5 {[%clk 0:00:23]} 45. dxc5 {[%clk 0:00:46]}  Rc2 {[%clk 0:00:20]} 46. Rd1 {[%clk 0:00:44]}  Kxe5 {[%clk 0:00:19]} 47. Rd7 {[%clk 0:00:44]}  f5 {[%clk 0:00:19]} 0-1


[Site "https://www.chess.com"]

[Event "Titled Tuesday Blitz January 31 Late 2023"]
[White "Vovk, Orest"]
[Black "Torres Dominguez, David"]
[WhiteFideId "14113490"]
[BlackFideId "2220857"]
[WhiteElo "2315"]
[BlackElo "1994"]
[Result "1-0"]
[Round "02"]
[TimeControl "180+2"]
[Date "2023.01.31"]
[WhiteClock "0:00:21"]
[BlackClock "0:01:05"]

1. g4 {[%clk 0:02:53]}  e5 {[%clk 0:02:57]} 2. g5 {[%clk 0:02:49]}  Nc6 {[%clk 0:02:57]} 3. h4 {[%clk 0:02:48]}  Bc5 {[%clk 0:02:55]} 4. Bg2 {[%clk 0:02:48]}  Nge7 {[%clk 0:02:55]} 5. Nc3 {[%clk 0:02:48]}  O-O {[%clk 0:02:53]} 6. Ne4 {[%clk 0:02:47]}  Bb6 {[%clk 0:02:52]} 7. h5 {[%clk 0:02:42]}  d5 {[%clk 0:02:52]} 8. Ng3 {[%clk 0:02:42]}  f5 {[%clk 0:02:52]} 9. d3 {[%clk 0:02:25]}  f4 {[%clk 0:02:49]} 10. Nf1 {[%clk 0:02:25]}  Nf5 {[%clk 0:02:48]} 11. Nf3 {[%clk 0:02:21]}  Be6 {[%clk 0:02:24]} 12. g6 {[%clk 0:02:07]}  h6 {[%clk 0:02:23]} 13. c3 {[%clk 0:02:04]}  e4 {[%clk 0:02:19]} 14. dxe4 {[%clk 0:02:00]}  dxe4 {[%clk 0:02:19]} 15. Qxd8 {[%clk 0:02:00]}  Raxd8 {[%clk 0:02:19]} 16. Nh4 {[%clk 0:01:59]}  f3 {[%clk 0:01:39]} 17. Bh3 {[%clk 0:01:27]}  fxe2 {[%clk 0:01:38]} 18. Ne3 {[%clk 0:01:25]}  Bc8 {[%clk 0:01:23]} 19. Nhxf5 {[%clk 0:00:57]}  Bxf5 {[%clk 0:01:22]} 20. Bxf5 {[%clk 0:00:49]}  Rxf5 {[%clk 0:01:22]} 21. Nxf5 {[%clk 0:00:40]}  Rd1+ {[%clk 0:01:21]} 22. Kxe2 {[%clk 0:00:40]}  Rxh1 {[%clk 0:01:21]} 23. Ng3 {[%clk 0:00:40]}  Rg1 {[%clk 0:01:17]} 24. b3 {[%clk 0:00:36]}  Ne5 {[%clk 0:01:17]} 25. Bb2 {[%clk 0:00:27]}  Rxa1 {[%clk 0:01:16]} 26. Bxa1 {[%clk 0:00:28]}  Nd3 {[%clk 0:01:09]} 27. Nxe4 {[%clk 0:00:26]}  Nc1+ {[%clk 0:01:10]} 28. Kd2 {[%clk 0:00:26]}  Nxa2 {[%clk 0:01:10]} 29. Kc2 {[%clk 0:00:24]}  Kf8 {[%clk 0:01:07]} 30. Kb2 {[%clk 0:00:23]}  Ke7 {[%clk 0:01:07]} 31. Kxa2 {[%clk 0:00:23]}  Ke6 {[%clk 0:01:08]} 32. c4 {[%clk 0:00:23]}  Kf5 {[%clk 0:01:08]} 33. Bxg7 {[%clk 0:00:21]}  Kxe4 {[%clk 0:01:07]} 34. Bxh6 {[%clk 0:00:20]}  Bd4 {[%clk 0:01:04]} 35. g7 {[%clk 0:00:20]}  Bxg7 {[%clk 0:01:04]} 36. Bxg7 {[%clk 0:00:21]}  Kf5 {[%clk 0:01:05]} 37. h6 {[%clk 0:00:21]}  Kg6 {[%clk 0:01:05]} 38. f4 {[%clk 0:00:21]}  c6 {[%clk 0:01:05]} 39. f5+ {[%clk 0:00:21]} 1-0


[Site "https://www.chess.com"]

[Event "Titled Tuesday Blitz January 31 Late 2023"]
[White "Araujo, Everson De Moura"]
[Black "Golubev, Mikhail"]
[WhiteFideId "22737197"]
[BlackFideId "14100983"]
[WhiteElo "1944"]
[BlackElo "2461"]
[Result "0-1"]
[Round "02"]
[TimeControl "180+2"]
[Date "2023.01.31"]
[WhiteClock "0:00:16"]
[BlackClock "0:00:10"]

1. c4 {[%clk 0:03:00]}  g6 {[%clk 0:02:59]} 2. Nc3 {[%clk 0:03:00]}  Bg7 {[%clk 0:03:00]} 3. g3 {[%clk 0:02:59]}  e5 {[%clk 0:02:59]} 4. Bg2 {[%clk 0:03:00]}  Nc6 {[%clk 0:02:59]} 5. e4 {[%clk 0:02:57]}  d6 {[%clk 0:02:56]} 6. Nge2 {[%clk 0:02:54]}  f5 {[%clk 0:02:49]} 7. exf5 {[%clk 0:02:44]}  Bxf5 {[%clk 0:02:47]} 8. d4 {[%clk 0:02:38]}  exd4 {[%clk 0:02:41]} 9. Bxc6+ {[%clk 0:02:38]}  bxc6 {[%clk 0:02:40]} 10. Nxd4 {[%clk 0:02:39]}  Qe7+ {[%clk 0:02:06]} 11. Be3 {[%clk 0:02:36]}  Bd7 {[%clk 0:02:05]} 12. O-O {[%clk 0:02:29]}  Nf6 {[%clk 0:02:04]} 13. Re1 {[%clk 0:02:28]}  O-O {[%clk 0:02:04]} 14. Bh6 {[%clk 0:02:23]}  Qf7 {[%clk 0:02:04]} 15. Bxg7 {[%clk 0:02:23]}  Kxg7 {[%clk 0:02:04]} 16. Qf3 {[%clk 0:02:19]}  Qxc4 {[%clk 0:01:56]} 17. Nc2 {[%clk 0:01:34]}  Nd5 {[%clk 0:01:26]} 18. Qe2 {[%clk 0:01:13]}  Qxe2 {[%clk 0:01:22]} 19. Nxe2 {[%clk 0:01:09]}  Rae8 {[%clk 0:01:21]} 20. Ned4 {[%clk 0:01:07]}  c5 {[%clk 0:01:19]} 21. Rxe8 {[%clk 0:01:03]}  Rxe8 {[%clk 0:01:19]} 22. Nf3 {[%clk 0:00:56]}  Re2 {[%clk 0:01:13]} 23. Rc1 {[%clk 0:00:54]}  Bf5 {[%clk 0:01:11]} 24. Nfe1 {[%clk 0:00:34]}  a5 {[%clk 0:01:09]} 25. Kf1 {[%clk 0:00:34]}  Rd2 {[%clk 0:01:08]} 26. b3 {[%clk 0:00:26]}  Bh3+ {[%clk 0:01:00]} 27. Kg1 {[%clk 0:00:26]}  Nc3 {[%clk 0:00:54]} 28. Nf3 {[%clk 0:00:22]}  Ne2+ {[%clk 0:00:44]} 29. Kh1 {[%clk 0:00:22]}  Nxc1 {[%clk 0:00:25]} 30. Nxd2 {[%clk 0:00:21]}  Nxa2 {[%clk 0:00:25]} 31. Ne4 {[%clk 0:00:20]}  Bf5 {[%clk 0:00:23]} 32. f3 {[%clk 0:00:17]}  Nc1 {[%clk 0:00:14]} 33. Ne3 {[%clk 0:00:16]}  Nxb3 {[%clk 0:00:12]} 34. Nc3 {[%clk 0:00:16]}  Be6 {[%clk 0:00:09]} 35. g4 {[%clk 0:00:16]}  Nd4 {[%clk 0:00:09]} 36. Kg2 {[%clk 0:00:16]}  Bb3 {[%clk 0:00:09]} 37. Kf2 {[%clk 0:00:17]}  a4 {[%clk 0:00:09]} 38. f4 {[%clk 0:00:16]}  a3 {[%clk 0:00:08]} 39. Nf1 {[%clk 0:00:13]}  a2 {[%clk 0:00:07]} 40. Nxa2 {[%clk 0:00:14]}  Bxa2 {[%clk 0:00:08]} 41. Nd2 {[%clk 0:00:15]}  Bd5 {[%clk 0:00:08]} 42. Ke3 {[%clk 0:00:16]}  Kf6 {[%clk 0:00:07]} 43. h4 {[%clk 0:00:15]}  h5 {[%clk 0:00:07]} 44. Nf1 {[%clk 0:00:15]}  hxg4 {[%clk 0:00:07]} 45. Nh2 {[%clk 0:00:15]}  Nf5+ {[%clk 0:00:06]} 46. Kf2 {[%clk 0:00:15]}  g3+ {[%clk 0:00:07]} 47. Kg1 {[%clk 0:00:16]}  gxh2+ {[%clk 0:00:08]} 48. Kxh2 {[%clk 0:00:16]}  c4 {[%clk 0:00:08]} 49. Kg1 {[%clk 0:00:15]}  c3 {[%clk 0:00:09]} 50. Kf2 {[%clk 0:00:16]}  c2 {[%clk 0:00:10]} 51. Ke2 {[%clk 0:00:17]}  c1=Q {[%clk 0:00:10]} 52. h5 {[%clk 0:00:17]}  Bc4+ {[%clk 0:00:10]} 53. Kf2 {[%clk 0:00:16]}  Qf1# {[%clk 0:00:10]} 0-1


[Site "https://www.chess.com"]

[Event "Titled Tuesday Blitz January 31 Late 2023"]
[White "Donskov, Anatoly"]
[Black "Ardila, Oscar Humberto"]
[WhiteFideId "24143413"]
[BlackFideId "4404742"]
[WhiteElo "2279"]
[BlackElo "1982"]
[Result "1-0"]
[Round "02"]
[TimeControl "180+2"]
[Date "2023.01.31"]
[WhiteClock "0:01:59"]
[BlackClock "0:01:48"]

1. e4 {[%clk 0:03:00]}  e5 {[%clk 0:02:59]} 2. Nf3 {[%clk 0:03:00]}  Nf6 {[%clk 0:02:59]} 3. d4 {[%clk 0:03:00]}  Nxe4 {[%clk 0:02:59]} 4. Bd3 {[%clk 0:03:00]}  d5 {[%clk 0:02:58]} 5. Nxe5 {[%clk 0:03:01]}  Nf6 {[%clk 0:02:58]} 6. O-O {[%clk 0:03:00]}  Bd6 {[%clk 0:02:58]} 7. Bg5 {[%clk 0:03:00]}  O-O {[%clk 0:02:57]} 8. Qf3 {[%clk 0:02:57]}  Be7 {[%clk 0:02:54]} 9. Nd2 {[%clk 0:02:55]}  c6 {[%clk 0:02:50]} 10. Rae1 {[%clk 0:02:41]}  Nbd7 {[%clk 0:02:50]} 11. Qg3 {[%clk 0:02:29]}  Nxe5 {[%clk 0:02:37]} 12. dxe5 {[%clk 0:02:22]}  Ne8 {[%clk 0:02:37]} 13. Qh4 {[%clk 0:02:18]}  g6 {[%clk 0:02:05]} 14. Bxe7 {[%clk 0:02:17]}  Qa5 {[%clk 0:02:05]} 15. Nb3 {[%clk 0:02:09]}  Qb6 {[%clk 0:02:04]} 16. Bc5 {[%clk 0:02:07]}  Qc7 {[%clk 0:02:02]} 17. f4 {[%clk 0:02:02]}  Ng7 {[%clk 0:01:53]} 18. Bxf8 {[%clk 0:02:01]}  Kxf8 {[%clk 0:01:54]} 19. Qxh7 {[%clk 0:02:01]}  c5 {[%clk 0:01:50]} 20. Qh8+ {[%clk 0:02:00]}  Ke7 {[%clk 0:01:49]} 21. Qxg7 {[%clk 0:02:00]}  c4 {[%clk 0:01:50]} 22. Bxg6 {[%clk 0:02:00]}  cxb3 {[%clk 0:01:47]} 23. Qxf7+ {[%clk 0:01:59]}  Kd8 {[%clk 0:01:48]} 24. Qe8# {[%clk 0:01:59]} 1-0


[Site "https://www.chess.com"]

[Event "Titled Tuesday Blitz January 31 Late 2023"]
[White "Kaplan, Avi Harrison"]
[Black "Andreassen, Lars"]
[WhiteFideId "30934559"]
[BlackFideId "1504878"]
[WhiteElo "2146"]
[BlackElo "2168"]
[Result "1/2-1/2"]
[Round "02"]
[TimeControl "180+2"]
[Date "2023.01.31"]
[WhiteClock "0:00:03"]
[BlackClock "0:00:09"]

1. c4 {[%clk 0:03:00]}  e6 {[%clk 0:02:59]} 2. Nc3 {[%clk 0:02:59]}  d5 {[%clk 0:03:00]} 3. d4 {[%clk 0:02:58]}  c5 {[%clk 0:02:59]} 4. cxd5 {[%clk 0:02:58]}  cxd4 {[%clk 0:03:00]} 5. Qa4+ {[%clk 0:02:58]}  Bd7 {[%clk 0:03:00]} 6. Qxd4 {[%clk 0:02:58]}  exd5 {[%clk 0:03:01]} 7. Qxd5 {[%clk 0:02:54]}  Nc6 {[%clk 0:03:01]} 8. Nf3 {[%clk 0:02:54]}  Nf6 {[%clk 0:03:01]} 9. Qd1 {[%clk 0:02:54]}  Bc5 {[%clk 0:03:01]} 10. e3 {[%clk 0:02:54]}  Qe7 {[%clk 0:03:02]} 11. Be2 {[%clk 0:02:52]}  Rg8 {[%clk 0:03:01]} 12. a3 {[%clk 0:02:51]}  g5 {[%clk 0:03:00]} 13. O-O {[%clk 0:02:42]}  g4 {[%clk 0:03:00]} 14. Nd4 {[%clk 0:02:41]}  O-O-O {[%clk 0:02:56]} 15. Qc2 {[%clk 0:02:35]}  Bxd4 {[%clk 0:02:53]} 16. exd4 {[%clk 0:02:30]}  Nxd4 {[%clk 0:02:52]} 17. Nd5+ {[%clk 0:02:08]}  Nxc2 {[%clk 0:02:51]} 18. Nxe7+ {[%clk 0:02:08]}  Kb8 {[%clk 0:02:51]} 19. Bf4+ {[%clk 0:02:07]}  Ka8 {[%clk 0:02:48]} 20. Rac1 {[%clk 0:02:07]}  Nd4 {[%clk 0:02:46]} 21. Bc4 {[%clk 0:02:02]}  Rgf8 {[%clk 0:02:37]} 22. Rfe1 {[%clk 0:01:59]}  Nc6 {[%clk 0:02:26]} 23. Nd5 {[%clk 0:01:43]}  Nxd5 {[%clk 0:02:24]} 24. Bxd5 {[%clk 0:01:44]}  f5 {[%clk 0:02:17]} 25. b4 {[%clk 0:01:29]}  a6 {[%clk 0:02:14]} 26. f3 {[%clk 0:01:12]}  gxf3 {[%clk 0:02:09]} 27. Bxf3 {[%clk 0:01:13]}  Nd4 {[%clk 0:02:00]} 28. Bxb7+ {[%clk 0:00:58]}  Kxb7 {[%clk 0:02:00]} 29. Rc7+ {[%clk 0:00:59]}  Kb6 {[%clk 0:01:51]} 30. Re7 {[%clk 0:00:32]}  Bc6 {[%clk 0:01:32]} 31. Be3 {[%clk 0:00:32]}  f4 {[%clk 0:01:27]} 32. Bf2 {[%clk 0:00:28]}  Kb5 {[%clk 0:01:25]} 33. Re5+ {[%clk 0:00:22]}  Kb6 {[%clk 0:01:09]} 34. Rxh7 {[%clk 0:00:22]}  Rg8 {[%clk 0:01:02]} 35. g3 {[%clk 0:00:16]}  fxg3 {[%clk 0:01:01]} 36. hxg3 {[%clk 0:00:16]}  Rxg3+ {[%clk 0:00:25]} 37. Bxg3 {[%clk 0:00:15]}  Nf3+ {[%clk 0:00:26]} 38. Kf1 {[%clk 0:00:10]}  Nxe5 {[%clk 0:00:25]} 39. Bxe5 {[%clk 0:00:11]}  Rd3 {[%clk 0:00:22]} 40. a4 {[%clk 0:00:10]}  Bxa4 {[%clk 0:00:20]} 41. Rh6+ {[%clk 0:00:03]}  Bc6 {[%clk 0:00:21]} 42. Ke2 {[%clk 0:00:03]}  Rb3 {[%clk 0:00:19]} 43. Bd6 {[%clk 0:00:04]}  Kb5 {[%clk 0:00:19]} 44. Bc5 {[%clk 0:00:04]}  Rb2+ {[%clk 0:00:19]} 45. Kd3 {[%clk 0:00:04]}  Rb3+ {[%clk 0:00:19]} 46. Kc2 {[%clk 0:00:05]}  Rg3 {[%clk 0:00:19]} 47. Kb2 {[%clk 0:00:05]}  Rg2+ {[%clk 0:00:19]} 48. Ka3 {[%clk 0:00:06]}  Rg3+ {[%clk 0:00:20]} 49. Kb2 {[%clk 0:00:06]}  Rg2+ {[%clk 0:00:19]} 50. Kc3 {[%clk 0:00:06]}  Rg3+ {[%clk 0:00:19]} 51. Kd2 {[%clk 0:00:06]}  Rg2+ {[%clk 0:00:19]} 52. Ke3 {[%clk 0:00:07]}  Rg3+ {[%clk 0:00:19]} 53. Kf2 {[%clk 0:00:08]}  Rc3 {[%clk 0:00:20]} 54. Rh8 {[%clk 0:00:07]}  Rc2+ {[%clk 0:00:20]} 55. Ke3 {[%clk 0:00:07]}  Kc4 {[%clk 0:00:20]} 56. Rh4+ {[%clk 0:00:07]}  Kb5 {[%clk 0:00:20]} 57. Rh8 {[%clk 0:00:07]}  Kc4 {[%clk 0:00:20]} 58. Rc8 {[%clk 0:00:07]}  Kb5 {[%clk 0:00:16]} 59. Kd3 {[%clk 0:00:07]}  Rg2 {[%clk 0:00:15]} 60. Rb8+ {[%clk 0:00:07]}  Ka4 {[%clk 0:00:15]} 61. Kc3 {[%clk 0:00:07]}  Bb5 {[%clk 0:00:14]} 62. Kd4 {[%clk 0:00:06]}  Rg4+ {[%clk 0:00:14]} 63. Ke3 {[%clk 0:00:06]}  Rg3+ {[%clk 0:00:14]} 64. Kf2 {[%clk 0:00:06]}  Rb3 {[%clk 0:00:14]} 65. Rh8 {[%clk 0:00:07]}  Rb2+ {[%clk 0:00:14]} 66. Ke3 {[%clk 0:00:06]}  Rb3+ {[%clk 0:00:14]} 67. Kd4 {[%clk 0:00:07]}  Rb2 {[%clk 0:00:15]} 68. Rh1 {[%clk 0:00:07]}  Ra2 {[%clk 0:00:15]} 69. Rb1 {[%clk 0:00:07]}  Rd2+ {[%clk 0:00:12]} 70. Kc3 {[%clk 0:00:06]}  Rd3+ {[%clk 0:00:12]} 71. Kc2 {[%clk 0:00:06]}  Rg3 {[%clk 0:00:12]} 72. Ra1+ {[%clk 0:00:06]}  Ra3 {[%clk 0:00:12]} 73. Re1 {[%clk 0:00:07]}  Ra2+ {[%clk 0:00:12]} 74. Kc3 {[%clk 0:00:07]}  Ra3+ {[%clk 0:00:12]} 75. Kb2 {[%clk 0:00:08]}  Rb3+ {[%clk 0:00:12]} 76. Kc2 {[%clk 0:00:08]}  Ra3 {[%clk 0:00:12]} 77. Re6 {[%clk 0:00:08]}  Ra2+ {[%clk 0:00:12]} 78. Kb1 {[%clk 0:00:08]}  Ra3 {[%clk 0:00:12]} 79. Rh6 {[%clk 0:00:07]}  Bd3+ {[%clk 0:00:12]} 80. Kc1 {[%clk 0:00:07]}  Bb5 {[%clk 0:00:10]} 81. Kd2 {[%clk 0:00:07]}  Ra2+ {[%clk 0:00:11]} 82. Ke3 {[%clk 0:00:08]}  Ra3+ {[%clk 0:00:11]} 83. Kd4 {[%clk 0:00:08]}  Rd3+ {[%clk 0:00:11]} 84. Ke5 {[%clk 0:00:09]}  Ra3 {[%clk 0:00:12]} 85. Rh1 {[%clk 0:00:08]}  Ra2 {[%clk 0:00:11]} 86. Kd6 {[%clk 0:00:07]}  Kb3 {[%clk 0:00:11]} 87. Kc7 {[%clk 0:00:08]}  Ka4 {[%clk 0:00:11]} 88. Kb6 {[%clk 0:00:08]}  Rg2 {[%clk 0:00:11]} 89. Ra1+ {[%clk 0:00:07]}  Kb3 {[%clk 0:00:12]} 90. Ka5 {[%clk 0:00:03]}  Ra2+ {[%clk 0:00:09]} 1/2-1/2


[Site "https://www.chess.com"]

[Event "Titled Tuesday Blitz January 31 Late 2023"]
[White "Tarnowska, Aleksandra"]
[Black "Estrada Nieto, Julian"]
[WhiteFideId "1180967"]
[BlackFideId "5101018"]
[WhiteElo "1835"]
[BlackElo "2215"]
[Result "0-1"]
[Round "02"]
[TimeControl "180+2"]
[Date "2023.01.31"]
[WhiteClock "0:00:05"]
[BlackClock "0:00:58"]

1. e4 {[%clk 0:03:00]}  e5 {[%clk 0:02:59]} 2. Nf3 {[%clk 0:02:59]}  Nc6 {[%clk 0:03:00]} 3. Bb5 {[%clk 0:02:58]}  a6 {[%clk 0:03:00]} 4. Ba4 {[%clk 0:02:58]}  Nf6 {[%clk 0:03:00]} 5. O-O {[%clk 0:02:58]}  Be7 {[%clk 0:03:00]} 6. Re1 {[%clk 0:02:56]}  b5 {[%clk 0:03:01]} 7. Bb3 {[%clk 0:02:56]}  d6 {[%clk 0:03:01]} 8. h3 {[%clk 0:02:54]}  Na5 {[%clk 0:03:01]} 9. c3 {[%clk 0:02:54]}  Nxb3 {[%clk 0:03:00]} 10. Qxb3 {[%clk 0:02:38]}  O-O {[%clk 0:03:00]} 11. d4 {[%clk 0:02:33]}  Be6 {[%clk 0:02:47]} 12. d5 {[%clk 0:02:20]}  Bd7 {[%clk 0:02:47]} 13. Nbd2 {[%clk 0:02:13]}  Nh5 {[%clk 0:02:45]} 14. Nf1 {[%clk 0:02:09]}  g6 {[%clk 0:02:43]} 15. Bh6 {[%clk 0:02:03]}  Ng7 {[%clk 0:02:41]} 16. Ng3 {[%clk 0:01:28]}  Kh8 {[%clk 0:02:41]} 17. c4 {[%clk 0:01:11]}  f5 {[%clk 0:02:25]} 18. cxb5 {[%clk 0:00:58]}  axb5 {[%clk 0:02:23]} 19. exf5 {[%clk 0:00:50]}  gxf5 {[%clk 0:02:23]} 20. Rac1 {[%clk 0:00:30]}  Bf6 {[%clk 0:02:17]} 21. a3 {[%clk 0:00:25]}  e4 {[%clk 0:02:14]} 22. Nd2 {[%clk 0:00:15]}  Be5 {[%clk 0:02:09]} 23. Qc2 {[%clk 0:00:13]}  Rc8 {[%clk 0:02:06]} 24. f4 {[%clk 0:00:06]}  Bd4+ {[%clk 0:01:59]} 25. Kh2 {[%clk 0:00:05]}  Qh4 {[%clk 0:01:54]} 26. Bxg7+ {[%clk 0:00:05]}  Kxg7 {[%clk 0:01:53]} 27. Ndf1 {[%clk 0:00:05]}  Kh8 {[%clk 0:01:46]} 28. Qd2 {[%clk 0:00:05]}  Bf6 {[%clk 0:01:34]} 29. Qe2 {[%clk 0:00:05]}  Be8 {[%clk 0:01:27]} 30. Rc2 {[%clk 0:00:03]}  Rg8 {[%clk 0:01:21]} 31. Rec1 {[%clk 0:00:03]}  Qxf4 {[%clk 0:01:14]} 32. Rxc7 {[%clk 0:00:02]}  Rxc7 {[%clk 0:01:14]} 33. Rxc7 {[%clk 0:00:03]}  Bh4 {[%clk 0:01:10]} 34. Qe3 {[%clk 0:00:03]}  Qxe3 {[%clk 0:01:08]} 35. Nxe3 {[%clk 0:00:03]}  Bxg3+ {[%clk 0:01:09]} 36. Kh1 {[%clk 0:00:03]}  Bg6 {[%clk 0:01:07]} 37. Nf1 {[%clk 0:00:03]}  Be5 {[%clk 0:01:07]} 38. g4 {[%clk 0:00:03]}  f4 {[%clk 0:01:05]} 39. Kg2 {[%clk 0:00:03]}  e3 {[%clk 0:01:04]} 40. Kf3 {[%clk 0:00:03]}  Bd3 {[%clk 0:01:03]} 41. Rb7 {[%clk 0:00:03]}  Bxf1 {[%clk 0:01:02]} 42. Rxb5 {[%clk 0:00:04]}  e2 {[%clk 0:01:01]} 43. Kf2 {[%clk 0:00:04]}  Bd4+ {[%clk 0:00:59]} 44. Ke1 {[%clk 0:00:04]}  f3 {[%clk 0:00:59]} 45. Rb7 {[%clk 0:00:04]}  f2+ {[%clk 0:00:58]} 46. Kd2 {[%clk 0:00:05]}  e1=Q+ {[%clk 0:00:58]} 0-1


[Site "https://www.chess.com"]

[Event "Titled Tuesday Blitz January 31 Late 2023"]
[White "Antonio, Jorge Carlos"]
[Black "Davidson, Kevin"]
[WhiteFideId "113190"]
[BlackFideId "2056810"]
[WhiteElo "2277"]
[BlackElo "2154"]
[Result "0-1"]
[Round "02"]
[TimeControl "180+2"]
[Date "2023.01.31"]
[WhiteClock "0:00:10"]
[BlackClock "0:00:05"]

1. d4 {[%clk 0:02:59]}  Nf6 {[%clk 0:02:59]} 2. Nf3 {[%clk 0:02:58]}  g6 {[%clk 0:02:59]} 3. c4 {[%clk 0:02:58]}  Bg7 {[%clk 0:02:59]} 4. Nc3 {[%clk 0:02:58]}  d6 {[%clk 0:03:00]} 5. e4 {[%clk 0:02:58]}  O-O {[%clk 0:02:59]} 6. Be2 {[%clk 0:02:58]}  e5 {[%clk 0:02:58]} 7. O-O {[%clk 0:02:57]}  Nc6 {[%clk 0:02:58]} 8. d5 {[%clk 0:02:55]}  Ne7 {[%clk 0:02:58]} 9. Ne1 {[%clk 0:02:51]}  Nd7 {[%clk 0:02:58]} 10. Be3 {[%clk 0:02:51]}  f5 {[%clk 0:02:58]} 11. f3 {[%clk 0:02:52]}  f4 {[%clk 0:02:58]} 12. Bf2 {[%clk 0:02:52]}  g5 {[%clk 0:02:58]} 13. Rc1 {[%clk 0:02:51]}  Ng6 {[%clk 0:02:58]} 14. c5 {[%clk 0:02:49]}  Nxc5 {[%clk 0:02:57]} 15. b4 {[%clk 0:02:48]}  Na6 {[%clk 0:02:58]} 16. a3 {[%clk 0:02:39]}  h5 {[%clk 0:02:55]} 17. Qc2 {[%clk 0:02:38]}  Rf7 {[%clk 0:02:51]} 18. Nb5 {[%clk 0:02:38]}  b6 {[%clk 0:02:49]} 19. Qc6 {[%clk 0:02:23]}  Bd7 {[%clk 0:02:39]} 20. Qb7 {[%clk 0:02:15]}  Qc8 {[%clk 0:02:19]} 21. Qxc8+ {[%clk 0:02:07]}  Bxc8 {[%clk 0:02:20]} 22. Rc2 {[%clk 0:01:59]}  Kf8 {[%clk 0:01:34]} 23. Nd3 {[%clk 0:01:54]}  Ke8 {[%clk 0:01:34]} 24. Rfc1 {[%clk 0:01:53]}  Kd8 {[%clk 0:01:33]} 25. Nb2 {[%clk 0:01:45]}  g4 {[%clk 0:01:17]} 26. Kf1 {[%clk 0:01:40]}  Bf6 {[%clk 0:01:16]} 27. Nc4 {[%clk 0:01:22]}  Be7 {[%clk 0:01:09]} 28. Nb2 {[%clk 0:01:15]}  Bh4 {[%clk 0:01:01]} 29. Bxh4+ {[%clk 0:01:10]}  Nxh4 {[%clk 0:01:01]} 30. Nc4 {[%clk 0:01:10]}  Rf6 {[%clk 0:00:50]} 31. Nd2 {[%clk 0:01:03]}  gxf3 {[%clk 0:00:46]} 32. gxf3 {[%clk 0:00:57]}  Rf7 {[%clk 0:00:37]} 33. Kf2 {[%clk 0:00:55]}  Rg7 {[%clk 0:00:34]} 34. Nb3 {[%clk 0:00:50]}  Rg2+ {[%clk 0:00:24]} 35. Kf1 {[%clk 0:00:49]}  Bh3 {[%clk 0:00:23]} 36. Ke1 {[%clk 0:00:47]}  Rxh2 {[%clk 0:00:13]} 37. Nxc7 {[%clk 0:00:46]}  Rh1+ {[%clk 0:00:13]} 38. Kd2 {[%clk 0:00:43]}  Rxc1 {[%clk 0:00:12]} 39. Nxa8 {[%clk 0:00:31]}  Rxc2+ {[%clk 0:00:12]} 40. Kxc2 {[%clk 0:00:31]}  Bg2 {[%clk 0:00:09]} 41. Bxa6 {[%clk 0:00:28]}  Nxf3 {[%clk 0:00:07]} 42. Bd3 {[%clk 0:00:28]}  h4 {[%clk 0:00:07]} 43. Kd1 {[%clk 0:00:19]}  h3 {[%clk 0:00:07]} 44. Nd2 {[%clk 0:00:18]}  Nxd2 {[%clk 0:00:06]} 45. Kxd2 {[%clk 0:00:17]}  h2 {[%clk 0:00:07]} 46. Bb5 {[%clk 0:00:08]}  h1=Q {[%clk 0:00:07]} 47. Bc6 {[%clk 0:00:08]}  Bxe4 {[%clk 0:00:05]} 48. Kc3 {[%clk 0:00:09]}  Qf3+ {[%clk 0:00:05]} 49. Kc4 {[%clk 0:00:10]}  Qd3# {[%clk 0:00:05]} 0-1


[Site "https://www.chess.com"]